[Event "*** Titled Tuesday Blitz"]
[Site "Chess.com"]
[Date "2019.04.02"]
[Round "2"]
[White "SoltaniciR"]
[Black "ShimanovAlex"]
[Result "1-0"]
[WhiteElo "2603"]
[BlackElo "2846"]
[TimeControl "180+2"]
[EndTime "14:22:17 PDT"]
[Termination "SoltaniciR won on time"]

1. e4 {[%clk 0:03:01.9]} 1... c6 {[%clk 0:03:00.1]} 2. Nf3 {[%clk 0:03:01.9]}
2... d5 {[%clk 0:03:00.9]} 3. Nc3 {[%clk 0:03:03]} 3... Bg4 {[%clk 0:03:02.5]}
4. h3 {[%clk 0:03:04.2]} 4... Bxf3 {[%clk 0:03:03.2]} 5. Qxf3 {[%clk 0:03:05.7]}
5... e6 {[%clk 0:03:04.2]} 6. d4 {[%clk 0:02:59.8]} 6... Nf6 {[%clk 0:03:00.6]}
7. Bd3 {[%clk 0:02:56.6]} 7... Be7 {[%clk 0:02:44.9]} 8. O-O {[%clk 0:02:53]}
8... O-O {[%clk 0:02:39.9]} 9. e5 {[%clk 0:02:49.2]} 9... Nfd7 {[%clk
0:02:40.5]} 10. Ne2 {[%clk 0:02:50.3]} 10... c5 {[%clk 0:02:40.1]} 11. c3 {[%clk
0:02:51.3]} 11... Nc6 {[%clk 0:02:35.4]} 12. a3 {[%clk 0:02:49.3]} 12... a6
{[%clk 0:02:27.2]} 13. Be3 {[%clk 0:02:44]} 13... b5 {[%clk 0:02:27.8]} 14. Nf4
{[%clk 0:02:31.6]} 14... cxd4 {[%clk 0:02:11.1]} 15. cxd4 {[%clk 0:02:31.9]}
15... Bg5 {[%clk 0:02:05.3]} 16. Rfd1 {[%clk 0:02:13.6]} 16... Rc8 {[%clk
0:02:03]} 17. Nxd5 {[%clk 0:01:52.4]} 17... Bxe3 {[%clk 0:01:54.4]} 18. Nxe3
{[%clk 0:01:52.7]} 18... g6 {[%clk 0:01:25.5]} 19. Be4 {[%clk 0:01:23.9]} 19...
Qb6 {[%clk 0:01:22.7]} 20. Ng4 {[%clk 0:01:14.8]} 20... h5 {[%clk 0:01:18.8]}
21. Nf6+ {[%clk 0:01:08.6]} 21... Nxf6 {[%clk 0:01:19.1]} 22. exf6 {[%clk
0:01:10.5]} 22... Nxd4 {[%clk 0:01:17.6]} 23. Qe3 {[%clk 0:00:55.6]} 23... e5
{[%clk 0:01:18.5]} 24. Qg5 {[%clk 0:00:56.7]} 24... Ne6 {[%clk 0:00:57]} 25. Qh6
{[%clk 0:00:56.6]} 25... Rc7 {[%clk 0:00:34]} 26. Rd3 {[%clk 0:00:45]} 26... Rc2
{[%clk 0:00:28.7]} 27. Rf3 {[%clk 0:00:37.4]} 27... Rc7 {[%clk 0:00:23.3]} 28.
Rg3 {[%clk 0:00:33.3]} 28... Qd4 {[%clk 0:00:16.3]} 29. Re1 {[%clk 0:00:21.1]}
29... h4 {[%clk 0:00:10.6]} 30. Rg4 {[%clk 0:00:18.5]} 30... Nf4 {[%clk
0:00:02]} 31. Rxh4 {[%clk 0:00:14.8]} 31... Nh5 {[%clk 0:00:02.9]} 32. Rxh5
{[%clk 0:00:12.8]} 1-0

[Event "*** Titled Tuesday Blitz"]
[Site "Chess.com"]
[Date "2019.04.02"]
[Round "2"]
[White "denizozen"]
[Black "JonahWillow"]
[Result "0-1"]
[WhiteElo "2697"]
[BlackElo "2691"]
[TimeControl "180+2"]
[EndTime "14:22:20 PDT"]
[Termination "JonahWillow won by checkmate"]

1. Nf3 {[%clk 0:02:59.7]} 1... c5 {[%clk 0:03:00.2]} 2. e4 {[%clk 0:03:00.3]}
2... e6 {[%clk 0:03:01.2]} 3. d4 {[%clk 0:03:01.2]} 3... cxd4 {[%clk 0:03:03.1]}
4. Nxd4 {[%clk 0:03:02.8]} 4... Nc6 {[%clk 0:03:02.3]} 5. Nc3 {[%clk 0:03:02.4]}
5... Qc7 {[%clk 0:03:03.5]} 6. Nde2 {[%clk 0:03:03.2]} 6... a6 {[%clk
0:02:57.9]} 7. b3 {[%clk 0:03:04]} 7... Nf6 {[%clk 0:02:46.1]} 8. Bb2 {[%clk
0:03:04.7]} 8... Bb4 {[%clk 0:02:45.9]} 9. a3 {[%clk 0:02:46]} 9... Bc5 {[%clk
0:02:31.5]} 10. Na4 {[%clk 0:02:28.1]} 10... Ba7 {[%clk 0:01:58]} 11. f3 {[%clk
0:02:17.8]} 11... O-O {[%clk 0:01:50.7]} 12. Qd2 {[%clk 0:02:12.1]} 12... b5
{[%clk 0:01:45.3]} 13. Qg5 {[%clk 0:02:10.9]} 13... h6 {[%clk 0:01:24.4]} 14.
Qh4 {[%clk 0:02:12]} 14... bxa4 {[%clk 0:01:18.4]} 15. Bxf6 {[%clk 0:02:12.9]}
15... gxf6 {[%clk 0:01:20.1]} 16. f4 {[%clk 0:02:03.5]} 16... Nd4 {[%clk
0:01:13.2]} 17. Nxd4 {[%clk 0:01:57.1]} 17... Qc3+ {[%clk 0:01:14]} 18. Ke2
{[%clk 0:01:55.7]} 18... Bxd4 {[%clk 0:01:04.8]} 19. Re1 {[%clk 0:01:24.6]}
19... Qxc2+ {[%clk 0:00:40.1]} 20. Kf3 {[%clk 0:00:33.6]} 20... Qc3+ {[%clk
0:00:42]} 21. Kg4 {[%clk 0:00:32.5]} 21... Kh7 {[%clk 0:00:29]} 22. Rd1 {[%clk
0:00:25.9]} 22... Rg8+ {[%clk 0:00:29.9]} 23. Kh5 {[%clk 0:00:26.7]} 23... Qc5+
{[%clk 0:00:30.6]} 24. e5 {[%clk 0:00:26.9]} 24... fxe5 {[%clk 0:00:26.4]} 25.
f5 {[%clk 0:00:27.9]} 25... Rg5+ {[%clk 0:00:21.5]} 26. Qxg5 {[%clk 0:00:29.1]}
26... hxg5 {[%clk 0:00:23.4]} 27. h4 {[%clk 0:00:29.4]} 27... Qc2 {[%clk
0:00:22.3]} 28. Bd3 {[%clk 0:00:27.4]} 28... Qxg2 {[%clk 0:00:19.4]} 29. f6+
{[%clk 0:00:28.6]} 29... Kg8 {[%clk 0:00:14.6]} 30. hxg5 {[%clk 0:00:27.2]}
30... Qf3+ {[%clk 0:00:14.7]} 31. Kh6 {[%clk 0:00:27.6]} 31... e4 {[%clk
0:00:14.9]} 32. Bb1 {[%clk 0:00:19.1]} 32... Qf5 {[%clk 0:00:15.7]} 33. Kh5
{[%clk 0:00:16.5]} 33... Bb7 {[%clk 0:00:14.6]} 34. Rdg1 {[%clk 0:00:16]} 34...
Bxg1 {[%clk 0:00:14.9]} 35. Rxg1 {[%clk 0:00:16.1]} 35... Qh3# {[%clk
0:00:16.3]} 0-1

[Event "*** Titled Tuesday Blitz"]
[Site "Chess.com"]
[Date "2019.04.02"]
[Round "2"]
[White "Panchenko_Dmitry"]
[Black "r31415"]
[Result "0-1"]
[WhiteElo "2548"]
[BlackElo "2341"]
[TimeControl "180+2"]
[EndTime "14:22:22 PDT"]
[Termination "r31415 won by checkmate"]

1. e4 {[%clk 0:02:49.8]} 1... e5 {[%clk 0:03:00.2]} 2. Nf3 {[%clk 0:02:49.8]}
2... Nc6 {[%clk 0:03:01.7]} 3. d4 {[%clk 0:02:50.7]} 3... exd4 {[%clk
0:03:02.1]} 4. Nxd4 {[%clk 0:02:52.6]} 4... Nf6 {[%clk 0:03:03.3]} 5. Nxc6
{[%clk 0:02:53.3]} 5... bxc6 {[%clk 0:03:05.2]} 6. Nd2 {[%clk 0:02:54.5]} 6...
d5 {[%clk 0:02:55.2]} 7. exd5 {[%clk 0:02:56.4]} 7... cxd5 {[%clk 0:02:26.6]} 8.
Bb5+ {[%clk 0:02:50.7]} 8... Bd7 {[%clk 0:02:25.8]} 9. Bxd7+ {[%clk 0:02:51.2]}
9... Qxd7 {[%clk 0:02:24.9]} 10. O-O {[%clk 0:02:51.7]} 10... Be7 {[%clk
0:02:24.4]} 11. b3 {[%clk 0:02:52.6]} 11... O-O {[%clk 0:02:22.6]} 12. Bb2
{[%clk 0:02:53.6]} 12... Rad8 {[%clk 0:02:12.9]} 13. Qf3 {[%clk 0:02:54.4]}
13... Qg4 {[%clk 0:02:03.8]} 14. Qxg4 {[%clk 0:02:50.8]} 14... Nxg4 {[%clk
0:02:04.7]} 15. Rae1 {[%clk 0:02:40.2]} 15... Bb4 {[%clk 0:01:55.1]} 16. Re2
{[%clk 0:02:35.3]} 16... Rfe8 {[%clk 0:01:46.3]} 17. Rfe1 {[%clk 0:02:35.7]}
17... Re6 {[%clk 0:01:21.3]} 18. c3 {[%clk 0:02:27.2]} 18... Bc5 {[%clk
0:01:21.5]} 19. Rxe6 {[%clk 0:02:17.9]} 19... fxe6 {[%clk 0:01:19.6]} 20. Rxe6
{[%clk 0:01:51.6]} 20... Nxf2 {[%clk 0:01:19.4]} 21. Kf1 {[%clk 0:01:30.5]}
21... Nd3 {[%clk 0:01:11.7]} 22. Ba1 {[%clk 0:01:29.2]} 22... Bb6 {[%clk
0:00:53]} 23. Nf3 {[%clk 0:01:25.4]} 23... h6 {[%clk 0:00:49.8]} 24. Re2 {[%clk
0:01:13.8]} 24... c6 {[%clk 0:00:39.6]} 25. Rd2 {[%clk 0:01:12.6]} 25... Nc5
{[%clk 0:00:38.2]} 26. Bb2 {[%clk 0:01:08.4]} 26... Re8 {[%clk 0:00:37.4]} 27.
Re2 {[%clk 0:01:05.9]} 27... Ra8 {[%clk 0:00:24.4]} 28. Ba3 {[%clk 0:00:57.6]}
28... Ne4 {[%clk 0:00:20.7]} 29. c4 {[%clk 0:00:54.7]} 29... a5 {[%clk
0:00:21.7]} 30. Ne5 {[%clk 0:00:40.4]} 30... a4 {[%clk 0:00:19]} 31. b4 {[%clk
0:00:25.3]} 31... Rf8+ {[%clk 0:00:19.8]} 32. Nf3 {[%clk 0:00:24.2]} 32... Nc3
{[%clk 0:00:18.1]} 33. Rc2 {[%clk 0:00:25.1]} 33... d4 {[%clk 0:00:10.3]} 34.
Ke1 {[%clk 0:00:20.9]} 34... Re8+ {[%clk 0:00:10.2]} 35. Kd2 {[%clk 0:00:21]}
35... Nb1+ {[%clk 0:00:11.1]} 36. Kd3 {[%clk 0:00:20.2]} 36... Re3# {[%clk
0:00:11.2]} 0-1

[Event "*** Titled Tuesday Blitz"]
[Site "Chess.com"]
[Date "2019.04.02"]
[Round "2"]
[White "emperor87"]
[Black "Elshan1985"]
[Result "1/2-1/2"]
[WhiteElo "2658"]
[BlackElo "2774"]
[TimeControl "180+2"]
[EndTime "14:22:23 PDT"]
[Termination "Game drawn by agreement"]

1. Nf3 {[%clk 0:03:01.9]} 1... g6 {[%clk 0:03:00.2]} 2. g3 {[%clk 0:03:02.9]}
2... Bg7 {[%clk 0:03:01.4]} 3. Bg2 {[%clk 0:03:04.1]} 3... d5 {[%clk 0:03:00.7]}
4. O-O {[%clk 0:03:04.9]} 4... e6 {[%clk 0:03:01.7]} 5. d4 {[%clk 0:03:05.7]}
5... Ne7 {[%clk 0:03:03]} 6. c4 {[%clk 0:03:06.3]} 6... Nbc6 {[%clk 0:03:03.8]}
7. Nc3 {[%clk 0:03:04.9]} 7... O-O {[%clk 0:03:04.7]} 8. Bg5 {[%clk 0:03:02.5]}
8... h6 {[%clk 0:03:05.3]} 9. Bxe7 {[%clk 0:03:03.3]} 9... Nxe7 {[%clk
0:03:06.1]} 10. cxd5 {[%clk 0:03:02.9]} 10... exd5 {[%clk 0:03:06.9]} 11. b4
{[%clk 0:03:02.8]} 11... Bg4 {[%clk 0:03:01.7]} 12. e3 {[%clk 0:03:00.9]} 12...
a6 {[%clk 0:02:51.6]} 13. a4 {[%clk 0:03:00.6]} 13... Qd6 {[%clk 0:02:52.1]} 14.
Qb3 {[%clk 0:03:00.3]} 14... Rfd8 {[%clk 0:02:47.3]} 15. b5 {[%clk 0:03:00.1]}
15... a5 {[%clk 0:02:48.1]} 16. Rac1 {[%clk 0:02:56.1]} 16... g5 {[%clk
0:02:44.7]} 17. e4 {[%clk 0:02:46.4]} 17... Bxf3 {[%clk 0:02:28.9]} 18. Bxf3
{[%clk 0:02:45.3]} 18... Bxd4 {[%clk 0:02:30.4]} 19. Nxd5 {[%clk 0:02:43.9]}
19... Nxd5 {[%clk 0:02:31.6]} 20. exd5 {[%clk 0:02:44.2]} 20... Bb6 {[%clk
0:02:31.4]} 21. Be4 {[%clk 0:02:43.1]} 21... Re8 {[%clk 0:02:31.4]} 22. Qf3
{[%clk 0:02:42.4]} 22... Re7 {[%clk 0:02:30.4]} 23. Qf5 {[%clk 0:02:39.6]} 23...
Kf8 {[%clk 0:02:30.7]} 24. Qh7 {[%clk 0:02:18.9]} 24... Qf6 {[%clk 0:02:28.2]}
25. Kg2 {[%clk 0:02:07.3]} 25... Rae8 {[%clk 0:02:27.1]} 26. f3 {[%clk 0:02:08]}
26... Re5 {[%clk 0:01:59.2]} 27. Rc4 {[%clk 0:02:00.4]} 27... Qg7 {[%clk
0:01:55.3]} 28. Qxg7+ {[%clk 0:01:59.6]} 28... Kxg7 {[%clk 0:01:57.2]} 29. g4
{[%clk 0:02:00.7]} 29... R5e7 {[%clk 0:01:50.1]} 30. Rfc1 {[%clk 0:01:59.5]}
30... Rd7 {[%clk 0:01:49.2]} 31. R1c2 {[%clk 0:01:59.8]} 31... Ree7 {[%clk
0:01:48.2]} 32. h4 {[%clk 0:01:58.7]} 32... Rd6 {[%clk 0:01:45.1]} 33. Kg3
{[%clk 0:01:57.4]} 33... Rf6 {[%clk 0:01:39.2]} 34. hxg5 {[%clk 0:01:43.2]}
34... hxg5 {[%clk 0:01:40]} 35. Rh2 {[%clk 0:01:43.9]} 35... Rh6 {[%clk
0:01:35.3]} 36. Rxh6 {[%clk 0:01:44.4]} 36... Kxh6 {[%clk 0:01:37.2]} 37. Rc1
{[%clk 0:01:41.8]} 37... Bd4 {[%clk 0:01:36.4]} 38. Rh1+ {[%clk 0:01:41.4]}
38... Kg7 {[%clk 0:01:37.6]} 39. Kg2 {[%clk 0:01:40.8]} 39... Kf6 {[%clk
0:01:35.5]} 40. Kf1 {[%clk 0:01:39.8]} 40... Ke5 {[%clk 0:01:35.8]} 41. Ke2
{[%clk 0:01:40.6]} 41... Kd6 {[%clk 0:01:35.5]} 42. Kd3 {[%clk 0:01:41]} 42...
Bf6 {[%clk 0:01:32.8]} 43. Rh6 {[%clk 0:01:39.2]} 43... Ke5 {[%clk 0:01:34.1]}
44. b6 {[%clk 0:01:09.2]} 44... cxb6 {[%clk 0:01:32.3]} 45. Bf5 {[%clk
0:01:08.8]} 45... Re8 {[%clk 0:01:25.3]} 46. d6 {[%clk 0:01:07.5]} 46... Rh8
{[%clk 0:01:19]} 47. Rxh8 {[%clk 0:00:57.2]} 47... Bxh8 {[%clk 0:01:20.9]} 48.
d7 {[%clk 0:00:58]} 48... Bf6 {[%clk 0:01:22.5]} 49. Kc4 {[%clk 0:00:58.7]}
49... Kd6 {[%clk 0:01:23.4]} 50. Kb5 {[%clk 0:00:59.1]} 50... Kc7 {[%clk
0:01:24.6]} 51. Kc4 {[%clk 0:00:54.3]} 51... Be5 {[%clk 0:01:25.2]} 52. Kb5
{[%clk 0:00:53.6]} 52... f6 {[%clk 0:01:24.9]} 53. Be4 {[%clk 0:00:54.3]} 53...
Kxd7 {[%clk 0:01:17.2]} 54. Kxb6 {[%clk 0:00:53.9]} 54... Bc3 {[%clk 0:01:17.1]}
55. Bxb7 {[%clk 0:00:48.6]} 55... Kd6 {[%clk 0:01:17.2]} 56. Kb5 {[%clk
0:00:46.6]} 56... Ke5 {[%clk 0:01:17.5]} 1/2-1/2

[Event "*** Titled Tuesday Blitz"]
[Site "Chess.com"]
[Date "2019.04.02"]
[Round "2"]
[White "gmjoey1"]
[Black "You_are_not_free"]
[Result "0-1"]
[WhiteElo "2491"]
[BlackElo "2324"]
[TimeControl "180+2"]
[EndTime "14:22:26 PDT"]
[Termination "You_are_not_free won by resignation"]

1. e4 {[%clk 0:03:01.9]} 1... c5 {[%clk 0:03:00.5]} 2. Nf3 {[%clk 0:03:01.8]}
2... a6 {[%clk 0:03:01.8]} 3. c3 {[%clk 0:03:01.8]} 3... d5 {[%clk 0:03:02.1]}
4. exd5 {[%clk 0:03:01.4]} 4... Nf6 {[%clk 0:03:03.4]} 5. d4 {[%clk 0:03:00.6]}
5... Nxd5 {[%clk 0:03:00.4]} 6. dxc5 {[%clk 0:02:58.6]} 6... e6 {[%clk
0:02:56.1]} 7. c4 {[%clk 0:02:49.8]} 7... Nb4 {[%clk 0:02:50.2]} 8. a3 {[%clk
0:02:46.9]} 8... Qxd1+ {[%clk 0:02:42.7]} 9. Kxd1 {[%clk 0:02:48.8]} 9... N4c6
{[%clk 0:02:43.2]} 10. Be3 {[%clk 0:02:48]} 10... a5 {[%clk 0:02:38.4]} 11. Nc3
{[%clk 0:02:45.7]} 11... Na6 {[%clk 0:02:38.3]} 12. Na4 {[%clk 0:02:42.7]} 12...
Bd7 {[%clk 0:02:36.1]} 13. Ke1 {[%clk 0:02:32.3]} 13... Rc8 {[%clk 0:02:26.9]}
14. Bd3 {[%clk 0:02:11.6]} 14... Be7 {[%clk 0:02:18.3]} 15. Rb1 {[%clk
0:02:02.9]} 15... e5 {[%clk 0:02:13.5]} 16. Nb6 {[%clk 0:01:52.8]} 16... Rd8
{[%clk 0:02:09.3]} 17. Nxd7 {[%clk 0:01:50.3]} 17... Rxd7 {[%clk 0:02:07.3]} 18.
Be4 {[%clk 0:01:49.5]} 18... Nxc5 {[%clk 0:01:59]} 19. Bxc6 {[%clk 0:01:46.3]}
19... Nd3+ {[%clk 0:01:57.6]} 20. Ke2 {[%clk 0:01:38.3]} 20... bxc6 {[%clk
0:01:58]} 21. Nd2 {[%clk 0:01:35.6]} 21... f5 {[%clk 0:01:54.4]} 22. f3 {[%clk
0:01:16.9]} 22... Kf7 {[%clk 0:01:49.9]} 23. Rhd1 {[%clk 0:01:15.7]} 23... Rhd8
{[%clk 0:01:49.8]} 24. Bb6 {[%clk 0:01:12]} 24... Nf4+ {[%clk 0:01:46.7]} 25.
Ke1 {[%clk 0:01:07.6]} 25... Nxg2+ {[%clk 0:01:32.8]} 26. Kf1 {[%clk 0:01:04.1]}
26... Rxd2 {[%clk 0:01:33.8]} 27. Bxd8 {[%clk 0:01:01.5]} 27... Ne3+ {[%clk
0:01:34.1]} 28. Ke1 {[%clk 0:01:02]} 28... Rxd1+ {[%clk 0:01:31.4]} 29. Rxd1
{[%clk 0:01:01.3]} 29... Nxd1 {[%clk 0:01:32.5]} 30. Bxe7 {[%clk 0:00:55.8]}
30... Kxe7 {[%clk 0:01:30.1]} 31. Kxd1 {[%clk 0:00:54.9]} 31... Kd6 {[%clk
0:01:28.4]} 32. b4 {[%clk 0:00:54.1]} 32... axb4 {[%clk 0:01:29]} 33. axb4
{[%clk 0:00:56]} 33... g5 {[%clk 0:01:12.1]} 34. Ke2 {[%clk 0:00:53.7]} 34... h5
{[%clk 0:01:13.2]} 35. h3 {[%clk 0:00:47.3]} 35... h4 {[%clk 0:01:07.7]} 36. Ke3
{[%clk 0:00:46.2]} 36... Kc7 {[%clk 0:01:01.8]} 37. Ke2 {[%clk 0:00:42.4]} 37...
e4 {[%clk 0:00:37.5]} 38. Kf2 {[%clk 0:00:38]} 38... exf3 {[%clk 0:00:36.1]} 39.
Kxf3 {[%clk 0:00:38.4]} 39... Kd6 {[%clk 0:00:37.5]} 40. Ke2 {[%clk 0:00:38.9]}
40... Ke5 {[%clk 0:00:37.5]} 41. Ke3 {[%clk 0:00:39.4]} 41... g4 {[%clk
0:00:38.6]} 42. hxg4 {[%clk 0:00:17.9]} 42... fxg4 {[%clk 0:00:39.7]} 0-1

[Event "*** Titled Tuesday Blitz"]
[Site "Chess.com"]
[Date "2019.04.02"]
[Round "2"]
[White "Firouzja2003"]
[Black "Shahinyan_ChessMood"]
[Result "1-0"]
[WhiteElo "3087"]
[BlackElo "2608"]
[TimeControl "180+2"]
[EndTime "14:22:27 PDT"]
[Termination "Firouzja2003 won by resignation"]

1. e4 {[%clk 0:03:01.9]} 1... e6 {[%clk 0:03:00.4]} 2. d4 {[%clk 0:03:01.3]}
2... d5 {[%clk 0:03:02.3]} 3. Nc3 {[%clk 0:03:00.6]} 3... Bb4 {[%clk 0:03:03.6]}
4. e5 {[%clk 0:03:02]} 4... c5 {[%clk 0:03:04.3]} 5. a3 {[%clk 0:03:03.7]} 5...
Bxc3+ {[%clk 0:03:05.8]} 6. bxc3 {[%clk 0:03:05.6]} 6... Ne7 {[%clk 0:03:07.3]}
7. Qg4 {[%clk 0:03:07.2]} 7... Qc7 {[%clk 0:03:01.8]} 8. Qxg7 {[%clk 0:03:08]}
8... Rg8 {[%clk 0:03:03.1]} 9. Qxh7 {[%clk 0:03:09.6]} 9... cxd4 {[%clk
0:03:04.6]} 10. Ne2 {[%clk 0:03:11.4]} 10... dxc3 {[%clk 0:03:03.5]} 11. f4
{[%clk 0:03:03.2]} 11... Nbc6 {[%clk 0:03:04.6]} 12. h4 {[%clk 0:03:04.2]} 12...
Bd7 {[%clk 0:02:57.3]} 13. h5 {[%clk 0:03:05.8]} 13... O-O-O {[%clk 0:02:56.7]}
14. Qd3 {[%clk 0:03:07.2]} 14... d4 {[%clk 0:02:51.2]} 15. h6 {[%clk 0:03:06.4]}
15... Be8 {[%clk 0:02:18.7]} 16. h7 {[%clk 0:03:05.7]} 16... Rh8 {[%clk
0:02:19.3]} 17. g4 {[%clk 0:02:53.5]} 17... Na5 {[%clk 0:01:43.5]} 18. Rh6
{[%clk 0:02:32.7]} 18... a6 {[%clk 0:01:33.1]} 19. a4 {[%clk 0:02:14]} 19... Nd5
{[%clk 0:01:25.2]} 20. Ba3 {[%clk 0:02:14.3]} 20... Ne3 {[%clk 0:01:22.9]} 21.
Bd6 {[%clk 0:02:04.7]} 21... Rxd6 {[%clk 0:01:12.5]} 22. exd6 {[%clk 0:02:06.6]}
22... Qxd6 {[%clk 0:01:14.4]} 23. Rc1 {[%clk 0:02:04]} 23... Nc6 {[%clk
0:00:48.3]} 24. Qe4 {[%clk 0:01:49.7]} 24... Nxg4 {[%clk 0:00:44.3]} 25. Rh3
{[%clk 0:01:51.2]} 25... f5 {[%clk 0:00:44.8]} 26. Qd3 {[%clk 0:01:49.7]} 26...
Qd5 {[%clk 0:00:33]} 27. Qg3 {[%clk 0:01:28.6]} 27... Nb4 {[%clk 0:00:20.6]} 28.
Nxc3 {[%clk 0:01:18.1]} 28... Qa5 {[%clk 0:00:15]} 29. Bc4 {[%clk 0:01:14.7]}
29... Bd7 {[%clk 0:00:09.8]} 30. Kf1 {[%clk 0:01:09.8]} 30... Nc6 {[%clk
0:00:05.5]} 31. Ne2 {[%clk 0:01:07.3]} 31... Qd2 {[%clk 0:00:06.2]} 32. Kg1
{[%clk 0:01:02.6]} 32... Be8 {[%clk 0:00:04.1]} 33. Bxe6+ {[%clk 0:01:00]} 33...
Kb8 {[%clk 0:00:05.4]} 34. Bxf5 {[%clk 0:00:57.7]} 34... Ne3 {[%clk 0:00:06.6]}
35. Bd3 {[%clk 0:00:59.1]} 35... Ka7 {[%clk 0:00:06.4]} 36. Qe1 {[%clk
0:00:52.5]} 36... Qxe1+ {[%clk 0:00:04]} 37. Rxe1 {[%clk 0:00:53.8]} 37... Nb4
{[%clk 0:00:04.9]} 38. Nxd4 {[%clk 0:00:51.1]} 1-0

[Event "*** Titled Tuesday Blitz"]
[Site "Chess.com"]
[Date "2019.04.02"]
[Round "2"]
[White "bugsbunny444"]
[Black "Sajkochess"]
[Result "1-0"]
[WhiteElo "2480"]
[BlackElo "2294"]
[TimeControl "180+2"]
[EndTime "14:22:27 PDT"]
[Termination "bugsbunny444 won by resignation"]

1. Nf3 {[%clk 0:03:01.9]} 1... Nf6 {[%clk 0:02:59.6]} 2. c4 {[%clk 0:03:02.3]}
2... e6 {[%clk 0:03:00.2]} 3. g3 {[%clk 0:03:03.5]} 3... d5 {[%clk 0:03:00.3]}
4. Bg2 {[%clk 0:03:05]} 4... dxc4 {[%clk 0:03:01.5]} 5. Qc2 {[%clk 0:03:05.6]}
5... a6 {[%clk 0:03:02]} 6. Ne5 {[%clk 0:03:06.3]} 6... Nbd7 {[%clk 0:02:34.7]}
7. Nxc4 {[%clk 0:03:03.9]} 7... Be7 {[%clk 0:02:35.6]} 8. O-O {[%clk 0:03:02.5]}
8... O-O {[%clk 0:02:36.9]} 9. b3 {[%clk 0:02:48.8]} 9... Nd5 {[%clk 0:02:21.1]}
10. Bb2 {[%clk 0:02:44.7]} 10... Bf6 {[%clk 0:02:21.7]} 11. d4 {[%clk
0:02:42.4]} 11... N7b6 {[%clk 0:02:19.7]} 12. Rd1 {[%clk 0:02:29.7]} 12... Bd7
{[%clk 0:01:26.8]} 13. e4 {[%clk 0:02:30.1]} 13... Nb4 {[%clk 0:01:24.9]} 14.
Qe2 {[%clk 0:02:29.5]} 14... Bb5 {[%clk 0:01:21.9]} 15. a3 {[%clk 0:01:44.5]}
15... Nc6 {[%clk 0:01:16.4]} 16. e5 {[%clk 0:01:46]} 16... Be7 {[%clk
0:01:14.9]} 17. a4 {[%clk 0:01:47.5]} 17... Bxc4 {[%clk 0:01:14.3]} 18. bxc4
{[%clk 0:01:49]} 18... Na5 {[%clk 0:00:56.3]} 19. Nd2 {[%clk 0:01:42.7]} 19...
c5 {[%clk 0:00:53.7]} 20. d5 {[%clk 0:01:26.9]} 20... Re8 {[%clk 0:00:49]} 21.
d6 {[%clk 0:01:16.3]} 21... Bf8 {[%clk 0:00:48.9]} 22. Bc3 {[%clk 0:01:11.2]}
22... Nc6 {[%clk 0:00:48.3]} 23. Bxc6 {[%clk 0:01:06.4]} 23... bxc6 {[%clk
0:00:49]} 24. Ba5 {[%clk 0:01:08]} 24... Rb8 {[%clk 0:00:47.6]} 25. Rab1 {[%clk
0:01:04.3]} 25... Rb7 {[%clk 0:00:48.6]} 26. Ne4 {[%clk 0:00:57.6]} 26... Qb8
{[%clk 0:00:12]} 27. Nxc5 {[%clk 0:00:58]} 27... Nxa4 {[%clk 0:00:10.2]} 28.
Nxb7 {[%clk 0:00:50.2]} 28... f6 {[%clk 0:00:05.8]} 29. d7 {[%clk 0:00:48]}
29... fxe5 {[%clk 0:00:06.8]} 30. dxe8=Q {[%clk 0:00:45.7]} 30... Qxe8 {[%clk
0:00:05.6]} 31. Qxe5 {[%clk 0:00:43.8]} 31... Qf7 {[%clk 0:00:05.7]} 32. Nd6
{[%clk 0:00:36]} 32... Qg6 {[%clk 0:00:06.4]} 33. Ne4 {[%clk 0:00:31.4]} 33...
h6 {[%clk 0:00:04.3]} 34. Rb8 {[%clk 0:00:27.8]} 34... Kh7 {[%clk 0:00:05.2]}
35. Rxf8 {[%clk 0:00:28]} 1-0

[Event "*** Titled Tuesday Blitz"]
[Site "Chess.com"]
[Date "2019.04.02"]
[Round "2"]
[White "area_5"]
[Black "dreamist"]
[Result "0-1"]
[WhiteElo "2688"]
[BlackElo "2692"]
[TimeControl "180+2"]
[EndTime "14:22:30 PDT"]
[Termination "dreamist won by resignation"]

1. e4 {[%clk 0:02:56.5]} 1... c5 {[%clk 0:03:00.2]} 2. Nf3 {[%clk 0:02:57.2]}
2... d6 {[%clk 0:03:00.6]} 3. d4 {[%clk 0:02:58]} 3... Nf6 {[%clk 0:03:00.9]} 4.
Nc3 {[%clk 0:02:58.6]} 4... cxd4 {[%clk 0:03:01.3]} 5. Qxd4 {[%clk 0:02:59.4]}
5... e5 {[%clk 0:02:53.3]} 6. Bb5+ {[%clk 0:02:59.7]} 6... Nc6 {[%clk
0:02:50.7]} 7. Qc4 {[%clk 0:02:36.2]} 7... Bd7 {[%clk 0:02:47.1]} 8. Ng5 {[%clk
0:02:35.9]} 8... Qe7 {[%clk 0:02:45.7]} 9. Nd5 {[%clk 0:02:27]} 9... Nxd5 {[%clk
0:02:45.4]} 10. Qxd5 {[%clk 0:02:27.6]} 10... Rc8 {[%clk 0:02:28]} 11. c3 {[%clk
0:02:24.7]} 11... h6 {[%clk 0:02:24]} 12. Nf3 {[%clk 0:02:25.4]} 12... Be6
{[%clk 0:02:23.4]} 13. Qd3 {[%clk 0:02:23]} 13... a6 {[%clk 0:02:23.4]} 14. Ba4
{[%clk 0:02:20.3]} 14... Qc7 {[%clk 0:02:03.3]} 15. Nd2 {[%clk 0:02:03.2]} 15...
Be7 {[%clk 0:02:01]} 16. Nf1 {[%clk 0:02:03.9]} 16... Qa5 {[%clk 0:01:42.1]} 17.
Bc2 {[%clk 0:01:57.4]} 17... d5 {[%clk 0:01:37.7]} 18. exd5 {[%clk 0:01:55]}
18... Qxd5 {[%clk 0:01:16.6]} 19. Qxd5 {[%clk 0:01:55.1]} 19... Bxd5 {[%clk
0:01:18.5]} 20. Ne3 {[%clk 0:01:56.3]} 20... Be6 {[%clk 0:01:17.5]} 21. Nf5
{[%clk 0:01:31.1]} 21... Bf8 {[%clk 0:01:12.5]} 22. h4 {[%clk 0:01:30.5]} 22...
g6 {[%clk 0:01:13.4]} 23. Ng3 {[%clk 0:01:30.6]} 23... h5 {[%clk 0:01:09.7]} 24.
Ne4 {[%clk 0:01:31.1]} 24... Be7 {[%clk 0:01:10.6]} 25. Bg5 {[%clk 0:01:30.7]}
25... f5 {[%clk 0:01:08]} 26. Bxe7 {[%clk 0:01:17.4]} 26... Kxe7 {[%clk
0:01:09.9]} 27. Nc5 {[%clk 0:01:17.2]} 27... Na5 {[%clk 0:01:05.8]} 28. Nxe6
{[%clk 0:01:16.9]} 28... Kxe6 {[%clk 0:01:06.5]} 29. O-O-O {[%clk 0:01:16.3]}
29... Rhd8 {[%clk 0:01:05.4]} 30. Rxd8 {[%clk 0:00:50.2]} 30... Rxd8 {[%clk
0:01:06.4]} 31. Rd1 {[%clk 0:00:51.7]} 31... Rc8 {[%clk 0:00:48.1]} 32. g3
{[%clk 0:00:42.1]} 32... e4 {[%clk 0:00:45.5]} 33. Rd4 {[%clk 0:00:39.1]} 33...
Ke7 {[%clk 0:00:40.1]} 34. b4 {[%clk 0:00:38.5]} 34... Nc4 {[%clk 0:00:34.6]}
35. a4 {[%clk 0:00:34.6]} 35... Ne5 {[%clk 0:00:32.7]} 36. Kb2 {[%clk
0:00:34.6]} 36... Rd8 {[%clk 0:00:31]} 37. Kb3 {[%clk 0:00:31.2]} 37... Rxd4
{[%clk 0:00:31]} 38. cxd4 {[%clk 0:00:32.4]} 38... Ng4 {[%clk 0:00:32.9]} 39.
Bd1 {[%clk 0:00:25]} 39... Nxf2 {[%clk 0:00:33.3]} 40. Be2 {[%clk 0:00:26.2]}
40... Nh1 {[%clk 0:00:32.6]} 41. Bc4 {[%clk 0:00:27]} 41... Nxg3 {[%clk
0:00:33.2]} 42. a5 {[%clk 0:00:27.1]} 42... Kd6 {[%clk 0:00:31.9]} 43. Bf7
{[%clk 0:00:26.1]} 43... f4 {[%clk 0:00:31.7]} 44. Bxg6 {[%clk 0:00:25]} 44...
f3 {[%clk 0:00:32.8]} 0-1